[Event "Mistrovství Čech mládeže 2023 - HD12"]
[Site "Harrachov, Czech Republic"]
[Date "2023.10.27"]
[Round "8.1"]
[White "Artamonov, Mikhail"]
[Black "Málek, Daniel"]
[Result "1-0"]
[TimeControl "90m + 30s"]
[WhiteElo "1458"]
[BlackElo "1404"]

1. e4 {[%clk 01:30:58]} {[%emt 00:00:02]} e5 {[%clk 01:30:41]} {[%emt
00:00:19]} 2. Nf3 {[%clk 01:31:23]} {[%emt 00:00:05]} Nc6 {[%clk 01:31:03]}
{[%emt 00:00:08]} 3. d4 {[%clk 01:31:44]} {[%emt 00:00:09]} exd4 {[%clk
01:31:06]} {[%emt 00:00:27]} 4. Nxd4 {[%clk 01:32:09]} {[%emt 00:00:05]} Bc5
{[%clk 01:31:18]} {[%emt 00:00:17]} 5. Nb3 {[%clk 01:32:37]} {[%emt 00:00:03]}
Bb6 {[%clk 01:31:20]} {[%emt 00:00:28]} 6. Nc3 {[%clk 01:32:56]} {[%emt
00:00:11]} Nge7 {[%clk 01:31:20]} {[%emt 00:00:29]} 7. Bc4 {[%clk 01:32:08]}
{[%emt 00:01:18]} O-O {[%clk 01:31:01]} {[%emt 00:00:50]} 8. Bg5 {[%clk
01:30:06]} {[%emt 00:02:31]} Qe8 {[%clk 01:24:42]} {[%emt 00:06:50]} 9. h4
{[%clk 01:16:12]} {[%emt 00:14:23]} Ne5 {[%clk 01:22:04]} {[%emt 00:03:08]} 10.
Be2 {[%clk 01:16:10]} {[%emt 00:00:33]} f6 {[%clk 01:22:08]} {[%emt 00:00:26]}
11. Bf4 {[%clk 01:15:29]} {[%emt 00:01:11]} d6 {[%clk 01:20:42]} {[%emt
00:01:55]} 12. Bg3 {[%clk 01:13:49]} {[%emt 00:02:10]} Qg6 {[%clk 01:18:28]}
{[%emt 00:02:44]} 13. Bh5 {[%clk 01:11:57]} {[%emt 00:02:22]} Qh6 {[%clk
01:17:08]} {[%emt 00:01:50]} 14. f4 {[%clk 01:02:57]} {[%emt 00:09:29]} N5c6
{[%clk 01:15:22]} {[%emt 00:02:16]} 15. Qe2 {[%clk 00:48:53]} {[%emt 00:14:36]}
f5 {[%clk 01:11:42]} {[%emt 00:04:10]} 16. O-O-O {[%clk 00:45:49]} {[%emt
00:03:33]} a5 {[%clk 01:11:03]} {[%emt 00:01:09]} 17. a4 {[%clk 00:44:54]}
{[%emt 00:01:25]} Be6 {[%clk 01:10:23]} {[%emt 00:01:09]} 18. Bf3 {[%clk
00:35:50]} {[%emt 00:09:35]} Bxb3 {[%clk 01:09:01]} {[%emt 00:01:52]} 19. cxb3
{[%clk 00:36:02]} {[%emt 00:00:18]} Nd4 {[%clk 01:08:29]} {[%emt 00:01:02]} 20.
Rxd4 {[%clk 00:35:56]} {[%emt 00:00:37]} Bxd4 {[%clk 01:07:43]} {[%emt
00:01:15]} 21. Qc4+ {[%clk 00:36:01]} {[%emt 00:00:25]} Kh8 {[%clk 01:00:46]}
{[%emt 00:07:27]} 22. Qxd4 {[%clk 00:35:59]} {[%emt 00:00:32]} Rae8 {[%clk
00:59:17]} {[%emt 00:01:59]} 23. e5 {[%clk 00:29:27]} {[%emt 00:07:02]} dxe5
{[%clk 00:51:14]} {[%emt 00:08:33]} 24. Qxe5 {[%clk 00:29:35]} {[%emt
00:00:22]} Qd6 {[%clk 00:47:33]} {[%emt 00:04:11]} 25. Qxd6 {[%clk 00:28:59]}
{[%emt 00:01:06]} cxd6 {[%clk 00:47:45]} {[%emt 00:00:18]} 26. Rd1 {[%clk
00:28:58]} {[%emt 00:00:32]} Rf6 {[%clk 00:47:25]} {[%emt 00:00:49]} 27. Nb5
{[%clk 00:29:02]} {[%emt 00:00:26]} d5 {[%clk 00:45:44]} {[%emt 00:02:12]} 28.
Re1 {[%clk 00:27:35]} {[%emt 00:01:57]} h6 {[%clk 00:44:15]} {[%emt 00:01:58]}
29. Kb1 {[%clk 00:24:15]} {[%emt 00:03:50]} Rg6 {[%clk 00:33:49]} {[%emt
00:10:55]} 30. Bf2 {[%clk 00:22:48]} {[%emt 00:01:58]} Kg8 {[%clk 00:33:34]}
{[%emt 00:00:44]} 31. Nc7 {[%clk 00:22:28]} {[%emt 00:00:51]} Rc8 {[%clk
00:33:44]} {[%emt 00:00:21]} 32. Rxe7 {[%clk 00:22:48]} {[%emt 00:00:10]} Kf8
{[%clk 00:34:03]} {[%emt 00:00:09]} 33. Nxd5 {[%clk 00:22:47]} {[%emt
00:00:33]} Rgc6 {[%clk 00:33:38]} {[%emt 00:00:55]} 34. Re1 {[%clk 00:22:23]}
{[%emt 00:00:53]} Rc2 {[%clk 00:30:07]} {[%emt 00:04:01]} 35. Be3 {[%clk
00:20:24]} {[%emt 00:02:28]} Re8 {[%emt 00:02:12]} 1-0

[Event "Mistrovství Čech mládeže 2023 - HD12"]
[Site "Harrachov, Czech Republic"]
[Date "2023.10.27"]
[Round "8.2"]
[White "Janoušková, Eliška"]
[Black "Honcharov, Makar"]
[Result "0-1"]
[TimeControl "90m + 30s"]
[WhiteElo "1385"]
[BlackElo "1872"]

1. d4 {[%clk 01:30:57]} {[%emt 00:00:03]} Nf6 {[%clk 01:30:56]} {[%emt
00:00:04]} 2. c4 {[%clk 01:31:13]} {[%emt 00:00:14]} g6 {[%clk 01:31:21]}
{[%emt 00:00:05]} 3. Nf3 {[%clk 01:31:31]} {[%emt 00:00:12]} Bg7 {[%clk
01:31:46]} {[%emt 00:00:05]} 4. Nc3 {[%clk 01:31:09]} {[%emt 00:00:51]} d6
{[%clk 01:32:09]} {[%emt 00:00:08]} 5. e4 {[%clk 01:30:20]} {[%emt 00:01:19]}
O-O {[%clk 01:32:25]} {[%emt 00:00:14]} 6. Be2 {[%clk 01:28:26]} {[%emt
00:02:23]} e5 {[%clk 01:32:46]} {[%emt 00:00:10]} 7. dxe5 {[%clk 01:25:24]}
{[%emt 00:03:32]} dxe5 {[%clk 01:32:46]} {[%emt 00:00:31]} 8. Qxd8 {[%clk
01:22:22]} {[%emt 00:03:31]} Rxd8 {[%clk 01:33:06]} {[%emt 00:00:09]} 9. Bg5
{[%clk 01:17:23]} {[%emt 00:05:29]} Re8 {[%clk 01:31:40]} {[%emt 00:01:58]} 10.
Nd5 {[%clk 01:09:09]} {[%emt 00:08:43]} Nxd5 {[%clk 01:26:22]} {[%emt
00:05:48]} 11. cxd5 {[%clk 01:09:08]} {[%emt 00:00:30]} f5 {[%clk 01:26:29]}
{[%emt 00:00:24]} 12. exf5 {[%clk 00:55:24]} {[%emt 00:14:14]} gxf5 {[%clk
01:26:47]} {[%emt 00:00:12]} 13. Bc1 {[%clk 00:52:20]} {[%emt 00:03:35]} h6
{[%clk 01:26:31]} {[%emt 00:00:44]} 14. O-O {[%clk 00:49:07]} {[%emt 00:03:44]}
Kh7 {[%clk 01:21:07]} {[%emt 00:05:54]} 15. Re1 {[%clk 00:46:23]} {[%emt
00:03:14]} Bf6 {[%clk 01:16:03]} {[%emt 00:05:34]} 16. Bc4 {[%clk 00:42:19]}
{[%emt 00:04:34]} Bd7 {[%clk 01:10:41]} {[%emt 00:05:51]} 17. Rb1 {[%clk
00:40:43]} {[%emt 00:02:07]} a5 {[%clk 01:08:19]} {[%emt 00:02:51]} 18. b3
{[%clk 00:39:14]} {[%emt 00:02:00]} e4 {[%clk 01:06:42]} {[%emt 00:02:07]} 19.
Nd2 {[%clk 00:39:06]} {[%emt 00:00:37]} b5 {[%clk 01:07:01]} {[%emt 00:00:11]}
20. Bf1 {[%clk 00:38:33]} {[%emt 00:01:03]} Bc3 {[%clk 01:06:59]} {[%emt
00:00:33]} 21. Rd1 {[%clk 00:35:15]} {[%emt 00:03:48]} Re5 {[%clk 01:05:37]}
{[%emt 00:01:52]} 22. Bb2 {[%clk 00:31:51]} {[%emt 00:03:54]} Bxb2 {[%clk
01:05:45]} {[%emt 00:00:22]} 23. Rxb2 {[%clk 00:32:20]} {[%emt 00:00:02]} Rxd5
{[%clk 01:06:07]} {[%emt 00:00:07]} 24. Rc1 {[%clk 00:29:57]} {[%emt 00:02:53]}
Na6 {[%clk 01:04:53]} {[%emt 00:01:43]} 25. Rc3 {[%clk 00:26:27]} {[%emt
00:04:01]} Re8 {[%clk 01:03:53]} {[%emt 00:01:30]} 26. Be2 {[%clk 00:24:23]}
{[%emt 00:02:34]} Nc5 {[%clk 01:02:30]} {[%emt 00:01:54]} 27. Nf1 {[%clk
00:22:14]} {[%emt 00:02:38]} b4 {[%clk 01:01:34]} {[%emt 00:01:25]} 28. Rcc2
{[%clk 00:20:10]} {[%emt 00:02:35]} f4 {[%clk 00:56:37]} {[%emt 00:05:28]} 29.
Rb1 {[%clk 00:16:42]} {[%emt 00:03:57]} f3 {[%clk 00:53:43]} {[%emt 00:03:24]}
30. gxf3 {[%clk 00:13:43]} {[%emt 00:03:29]} exf3 {[%clk 00:54:07]} {[%emt
00:00:06]} 31. Bxf3 {[%clk 00:13:53]} {[%emt 00:00:20]} Rg5+ {[%clk 00:54:31]}
{[%emt 00:00:05]} 32. Ng3 {[%clk 00:13:55]} {[%emt 00:00:28]} Bf5 {[%clk
00:54:55]} {[%emt 00:00:07]} 33. Rxc5 {[%clk 00:10:41]} {[%emt 00:03:42]} Bxb1
{[%clk 00:55:22]} {[%emt 00:00:05]} 34. Rxc7+ {[%clk 00:10:30]} {[%emt
00:00:40]} Rg7 {[%clk 00:54:42]} {[%emt 00:01:11]} 35. Rc5 {[%clk 00:09:57]}
{[%emt 00:01:03]} Ra7 {[%clk 00:54:13]} {[%emt 00:00:59]} 36. Kg2 {[%clk
00:08:48]} {[%emt 00:01:39]} Bxa2 {[%clk 00:53:30]} {[%emt 00:01:13]} 37. Be4+
{[%clk 00:08:58]} {[%emt 00:00:20]} Kh8 {[%clk 00:51:49]} {[%emt 00:02:09]} 38.
Bc2 {[%clk 00:07:55]} {[%emt 00:01:35]} a4 {[%clk 00:50:55]} {[%emt 00:01:25]}
39. bxa4 {[%clk 00:07:17]} {[%emt 00:01:08]} b3 {[%clk 00:50:52]} {[%emt
00:00:32]} 40. Bg6 {[%clk 00:07:27]} {[%emt 00:00:19]} Rg8 {[%clk 00:49:25]}
{[%emt 00:01:56]} 41. Bd3 {[%clk 00:06:50]} {[%emt 00:01:08]} b2 {[%clk
00:49:21]} {[%emt 00:00:34]} 42. Rb5 {[%clk 00:07:10]} {[%emt 00:00:12]} Rb7
{[%clk 00:48:36]} {[%emt 00:01:14]} 43. Rxb7 {[%clk 00:03:19]} {[%emt
00:04:21]} Bd5+ {[%clk 00:48:42]} {[%emt 00:00:24]} 44. Kf1 {[%clk 00:03:05]}
{[%emt 00:00:44]} Bxb7 {[%clk 00:49:06]} {[%emt 00:00:07]} 45. Ne4 {[%clk
00:02:55]} {[%emt 00:00:39]} Ba6 {[%clk 00:49:28]} {[%emt 00:00:07]} 0-1

[Event "Mistrovství Čech mládeže 2023 - HD12"]
[Site "Harrachov, Czech Republic"]
[Date "2023.10.27"]
[Round "8.3"]
[White "Zrůst, Lukáš"]
[Black "Trejbal, Jindřich"]
[Result "0-1"]
[TimeControl "90m + 30s"]
[WhiteElo "1685"]
[BlackElo "1329"]

1. d4 {[%clk 01:30:48]} {[%emt 00:00:12]} d5 {[%clk 01:30:15]} {[%emt
00:00:46]} 2. c4 {[%clk 01:30:58]} {[%emt 00:00:19]} c6 {[%clk 01:29:07]}
{[%emt 00:01:37]} 3. Nf3 {[%clk 01:31:18]} {[%emt 00:00:10]} Nf6 {[%clk
01:26:57]} {[%emt 00:02:41]} 4. g3 {[%clk 01:30:37]} {[%emt 00:01:11]} g6
{[%clk 01:24:07]} {[%emt 00:03:20]} 5. b3 {[%clk 01:30:42]} {[%emt 00:00:25]}
Bg7 {[%clk 01:22:52]} {[%emt 00:01:45]} 6. Bb2 {[%clk 01:30:54]} {[%emt
00:00:19]} O-O {[%clk 01:21:59]} {[%emt 00:01:23]} 7. Bg2 {[%clk 01:30:56]}
{[%emt 00:00:27]} Bd7 {[%clk 01:19:54]} {[%emt 00:02:36]} 8. O-O {[%clk
01:30:30]} {[%emt 00:00:55]} Qc8 {[%clk 01:18:26]} {[%emt 00:01:58]} 9. Re1
{[%clk 01:29:36]} {[%emt 00:01:23]} Bh3 {[%clk 01:17:33]} {[%emt 00:01:24]} 10.
Bh1 {[%clk 01:29:59]} {[%emt 00:00:06]} h6 {[%clk 01:12:51]} {[%emt 00:05:13]}
11. Nc3 {[%clk 01:29:58]} {[%emt 00:00:30]} Na6 {[%clk 01:11:06]} {[%emt
00:02:16]} 12. Rc1 {[%clk 01:27:46]} {[%emt 00:02:41]} Qf5 {[%clk 01:03:24]}
{[%emt 00:08:11]} 13. Ne5 {[%clk 01:22:57]} {[%emt 00:05:20]} dxc4 {[%clk
00:53:32]} {[%emt 00:10:22]} 14. e4 {[%clk 01:20:20]} {[%emt 00:03:07]} Qe6
{[%clk 00:52:06]} {[%emt 00:01:56]} 15. Nxc4 {[%clk 01:14:43]} {[%emt
00:06:07]} Rad8 {[%clk 00:48:54]} {[%emt 00:03:43]} 16. a3 {[%clk 01:11:13]}
{[%emt 00:04:00]} Ng4 {[%clk 00:46:02]} {[%emt 00:03:21]} 17. d5 {[%clk
01:02:20]} {[%emt 00:09:23]} Qf6 {[%clk 00:43:08]} {[%emt 00:03:24]} 18. Rc2
{[%clk 00:55:21]} {[%emt 00:07:29]} Rfe8 {[%clk 00:23:37]} {[%emt 00:20:02]} 19.
Ne2 {[%clk 00:51:51]} {[%emt 00:03:59]} Qxf2# {[%clk 00:23:54]} {[%emt
00:00:13]} 0-1

[Event "Mistrovství Čech mládeže 2023 - HD12"]
[Site "Harrachov, Czech Republic"]
[Date "2023.10.27"]
[Round "8.4"]
[White "Gernert, Tomáš"]
[Black "Zischka, Vít"]
[Result "1-0"]
[TimeControl "90m + 30s"]
[WhiteElo "1389"]
[BlackElo "1274"]

1. c4 {[%clk 01:30:53]} {[%emt 00:00:07]} e5 {[%clk 01:30:41]} {[%emt
00:00:18]} 2. Nc3 {[%clk 01:31:16]} {[%emt 00:00:07]} Bb4 {[%clk 01:30:56]}
{[%emt 00:00:15]} 3. Nd5 {[%clk 01:30:09]} {[%emt 00:01:38]} Bc5 {[%clk
01:31:12]} {[%emt 00:00:14]} 4. g3 {[%clk 01:29:48]} {[%emt 00:00:51]} c6
{[%clk 01:30:22]} {[%emt 00:01:19]} 5. Nc3 {[%clk 01:29:35]} {[%emt 00:00:43]}
Ne7 {[%clk 01:29:19]} {[%emt 00:01:34]} 6. e4 {[%clk 01:29:29]} {[%emt
00:00:36]} O-O {[%clk 01:28:51]} {[%emt 00:00:57]} 7. Bg2 {[%clk 01:29:26]}
{[%emt 00:00:34]} d6 {[%clk 01:29:02]} {[%emt 00:00:20]} 8. Nge2 {[%clk
01:29:30]} {[%emt 00:00:25]} Be6 {[%clk 01:28:42]} {[%emt 00:00:50]} 9. d3
{[%clk 01:29:52]} {[%emt 00:00:08]} f5 {[%clk 01:28:10]} {[%emt 00:01:01]} 10.
b3 {[%clk 01:29:42]} {[%emt 00:00:41]} fxe4 {[%clk 01:27:06]} {[%emt 00:01:33]}
11. Nxe4 {[%clk 01:29:43]} {[%emt 00:00:29]} Bb6 {[%clk 01:22:09]} {[%emt
00:05:27]} 12. O-O {[%clk 01:20:48]} {[%emt 00:09:26]} h6 {[%clk 01:20:54]}
{[%emt 00:01:45]} 13. d4 {[%clk 01:11:03]} {[%emt 00:10:15]} exd4 {[%clk
01:12:54]} {[%emt 00:08:30]} 14. Nxd4 {[%clk 01:10:00]} {[%emt 00:01:33]} Bxd4
{[%clk 01:11:17]} {[%emt 00:02:07]} 15. Qxd4 {[%clk 01:09:52]} {[%emt
00:00:37]} Nf5 {[%clk 01:04:39]} {[%emt 00:07:09]} 16. Qd3 {[%clk 01:06:06]}
{[%emt 00:04:16]} Nd7 {[%clk 00:57:47]} {[%emt 00:07:23]} 17. Ba3 {[%clk
00:59:21]} {[%emt 00:06:45]} d5 {[%clk 00:48:57]} {[%emt 00:09:20]} 18. cxd5
{[%clk 00:50:40]} {[%emt 00:09:40]} cxd5 {[%clk 00:46:56]} {[%emt 00:02:31]} 19.
Bxf8 {[%clk 00:49:07]} {[%emt 00:02:02]} dxe4 {[%clk 00:45:51]} {[%emt
00:01:36]} 20. Qxe4 {[%clk 00:49:24]} {[%emt 00:00:12]} Nxf8 {[%clk 00:46:02]}
{[%emt 00:00:19]} 21. Qxb7 {[%clk 00:48:50]} {[%emt 00:01:04]} Rc8 {[%clk
00:38:09]} {[%emt 00:08:23]} 1-0

[Event "Mistrovství Čech mládeže 2023 - HD12"]
[Site "Harrachov, Czech Republic"]
[Date "2023.10.27"]
[Round "8.5"]
[White "Šára, David"]
[Black "Černý, Rodan"]
[Result "1/2-1/2"]
[TimeControl "90m + 30s"]
[WhiteElo "1320"]
[BlackElo "1383"]

1. e4 {[%clk 01:30:58]} {[%emt 00:00:02]} e5 {[%clk 01:30:55]} {[%emt
00:00:06]} 2. Bc4 {[%clk 01:31:21]} {[%emt 00:00:07]} Nf6 {[%clk 01:31:15]}
{[%emt 00:00:10]} 3. d4 {[%clk 01:31:44]} {[%emt 00:00:07]} d6 {[%clk
01:30:39]} {[%emt 00:01:06]} 4. dxe5 {[%clk 01:32:06]} {[%emt 00:00:07]} dxe5
{[%clk 01:31:07]} {[%emt 00:00:03]} 5. Qxd8+ {[%clk 01:32:23]} {[%emt
00:00:13]} Kxd8 {[%clk 01:31:35]} {[%emt 00:00:02]} 6. Bxf7 {[%clk 01:32:30]}
{[%emt 00:00:23]} Nxe4 {[%clk 01:31:59]} {[%emt 00:00:06]} 7. Nf3 {[%clk
01:32:43]} {[%emt 00:00:17]} Bd6 {[%clk 01:31:43]} {[%emt 00:00:46]} 8. O-O
{[%clk 01:32:54]} {[%emt 00:00:19]} Nf6 {[%clk 01:30:58]} {[%emt 00:01:15]} 9.
Nc3 {[%clk 01:32:32]} {[%emt 00:00:52]} Ke7 {[%clk 01:31:01]} {[%emt 00:00:27]}
10. Bb3 {[%clk 01:32:52]} {[%emt 00:00:10]} Nc6 {[%clk 01:26:28]} {[%emt
00:05:03]} 11. Bg5 {[%clk 01:32:45]} {[%emt 00:00:37]} Be6 {[%clk 01:22:59]}
{[%emt 00:03:58]} 12. Nd2 {[%clk 01:27:39]} {[%emt 00:05:35]} h6 {[%clk
01:20:24]} {[%emt 00:03:07]} 13. Be3 {[%clk 01:27:33]} {[%emt 00:00:35]} Ng4
{[%clk 01:19:13]} {[%emt 00:01:39]} 14. Nd5+ {[%clk 01:26:31]} {[%emt
00:01:34]} Kd7 {[%clk 01:16:48]} {[%emt 00:02:55]} 15. Rad1 {[%clk 01:25:12]}
{[%emt 00:01:49]} Raf8 {[%clk 01:09:16]} {[%emt 00:08:02]} 16. Ne4 {[%clk
01:21:57]} {[%emt 00:03:44]} Nxe3 {[%clk 01:06:53]} {[%emt 00:02:54]} 17. Nxe3
{[%clk 01:21:59]} {[%emt 00:00:28]} Bxb3 {[%clk 01:07:15]} {[%emt 00:00:09]} 18.
axb3 {[%clk 01:21:59]} {[%emt 00:00:31]} Ke6 {[%clk 01:03:47]} {[%emt
00:03:57]} 19. Nxd6 {[%clk 01:19:28]} {[%emt 00:03:00]} cxd6 {[%clk 01:04:13]}
{[%emt 00:00:03]} 20. c3 {[%clk 01:19:04]} {[%emt 00:00:55]} Ne7 {[%clk
01:02:53]} {[%emt 00:01:51]} 21. Rfe1 {[%clk 01:18:51]} {[%emt 00:00:42]} Rf7
{[%clk 01:01:37]} {[%emt 00:01:47]} 22. Nc4 {[%clk 01:18:53]} {[%emt 00:00:28]}
Nc8 {[%clk 01:01:17]} {[%emt 00:00:49]} 23. f3 {[%clk 01:16:24]} {[%emt
00:02:59]} Rhf8 {[%clk 01:01:21]} {[%emt 00:00:27]} 1/2-1/2

[Event "Mistrovství Čech mládeže 2023 - HD12"]
[Site "Harrachov, Czech Republic"]
[Date "2023.10.27"]
[Round "8.6"]
[White "Štěpánková, Linda"]
[Black "Lutskiy, Mikhail"]
[Result "0-1"]
[TimeControl "90m + 30s"]
[WhiteElo "1281"]
[BlackElo "1353"]

1. d4 {[%clk 01:30:53]} {[%emt 00:00:07]} d5 {[%clk 01:30:47]} {[%emt
00:00:13]} 2. e3 {[%clk 01:30:43]} {[%emt 00:00:40]} Nf6 {[%clk 01:31:03]}
{[%emt 00:00:13]} 3. f4 {[%clk 01:30:41]} {[%emt 00:00:31]} e6 {[%clk
01:30:46]} {[%emt 00:00:48]} 4. Nf3 {[%clk 01:30:05]} {[%emt 00:01:06]} c5
{[%clk 01:30:47]} {[%emt 00:00:29]} 5. c3 {[%clk 01:30:21]} {[%emt 00:00:14]}
Nc6 {[%clk 01:30:49]} {[%emt 00:00:26]} 6. Bd3 {[%clk 01:30:01]} {[%emt
00:00:52]} c4 {[%clk 01:30:01]} {[%emt 00:01:17]} 7. Bc2 {[%clk 01:29:29]}
{[%emt 00:01:04]} Bd6 {[%clk 01:27:06]} {[%emt 00:03:24]} 8. O-O {[%clk
01:28:05]} {[%emt 00:01:54]} O-O {[%clk 01:26:09]} {[%emt 00:01:27]} 9. Ne5
{[%clk 01:26:31]} {[%emt 00:02:04]} Nd7 {[%clk 01:25:18]} {[%emt 00:01:20]} 10.
Rf3 {[%clk 01:10:28]} {[%emt 00:16:34]} f5 {[%clk 01:25:08]} {[%emt 00:00:40]}
11. Rh3 {[%clk 01:08:06]} {[%emt 00:02:52]} Rf6 {[%clk 01:22:26]} {[%emt
00:03:08]} 12. Qh5 {[%clk 01:01:05]} {[%emt 00:07:30]} Nf8 {[%clk 01:21:32]}
{[%emt 00:01:28]} 13. Nxc6 {[%clk 00:52:42]} {[%emt 00:08:54]} bxc6 {[%clk
01:18:21]} {[%emt 00:03:41]} 14. Qh4 {[%clk 00:47:05]} {[%emt 00:06:07]} Be7
{[%clk 01:17:22]} {[%emt 00:01:28]} 15. Nd2 {[%clk 00:45:51]} {[%emt 00:01:46]}
Bd7 {[%clk 01:16:32]} {[%emt 00:01:20]} 16. Nf3 {[%clk 00:44:16]} {[%emt
00:02:05]} Be8 {[%clk 01:14:39]} {[%emt 00:02:22]} 17. Ne5 {[%clk 00:43:45]}
{[%emt 00:01:01]} Rh6 {[%clk 01:14:03]} {[%emt 00:01:06]} 18. Qf2 {[%clk
00:41:03]} {[%emt 00:03:12]} Rxh3 {[%clk 01:14:04]} {[%emt 00:00:30]} 19. gxh3
{[%clk 00:41:21]} {[%emt 00:00:12]} Ng6 {[%clk 01:13:36]} {[%emt 00:00:57]} 20.
Bd2 {[%clk 00:37:51]} {[%emt 00:04:00]} Nxe5 {[%clk 01:12:45]} {[%emt
00:01:21]} 21. fxe5 {[%clk 00:36:37]} {[%emt 00:01:45]} Bh4 {[%clk 01:10:50]}
{[%emt 00:02:22]} 22. Qg2 {[%clk 00:32:57]} {[%emt 00:04:12]} Qg5 {[%clk
01:09:38]} {[%emt 00:01:40]} 23. Rf1 {[%clk 00:29:39]} {[%emt 00:03:50]} Qxg2+
{[%clk 01:09:08]} {[%emt 00:01:00]} 24. Kxg2 {[%clk 00:30:07]} {[%emt
00:00:02]} a5 {[%clk 01:07:54]} {[%emt 00:01:44]} 25. Be1 {[%clk 00:23:47]}
{[%emt 00:06:50]} Bg5 {[%clk 01:07:15]} {[%emt 00:01:06]} 26. Bf2 {[%clk
00:22:41]} {[%emt 00:01:39]} a4 {[%clk 01:07:23]} {[%emt 00:00:21]} 27. Rb1
{[%clk 00:21:38]} {[%emt 00:01:35]} Be7 {[%clk 01:07:08]} {[%emt 00:00:43]} 28.
a3 {[%clk 00:20:30]} {[%emt 00:01:40]} Bg6 {[%clk 01:05:12]} {[%emt 00:02:24]}
29. Kf3 {[%clk 00:17:20]} {[%emt 00:03:41]} Bh5+ {[%clk 01:05:00]} {[%emt
00:00:42]} 30. Kg3 {[%clk 00:16:18]} {[%emt 00:01:33]} Kf8 {[%clk 01:03:41]}
{[%emt 00:01:46]} 31. Rc1 {[%clk 00:11:49]} {[%emt 00:05:01]} Ke8 {[%clk
01:03:21]} {[%emt 00:00:50]} 32. h4 {[%clk 00:09:30]} {[%emt 00:02:49]} Kd8
{[%clk 01:03:02]} {[%emt 00:00:49]} 33. Kf4 {[%clk 00:07:19]} {[%emt 00:02:41]}
g6 {[%clk 01:02:47]} {[%emt 00:00:46]} 34. Kg3 {[%clk 00:06:45]} {[%emt
00:01:03]} Kc7 {[%clk 01:02:46]} {[%emt 00:00:30]} 35. Kf4 {[%clk 00:06:31]}
{[%emt 00:00:45]} Kb6 {[%clk 01:02:37]} {[%emt 00:00:40]} 36. h3 {[%clk
00:05:54]} {[%emt 00:01:06]} Ka5 {[%clk 01:02:39]} {[%emt 00:00:29]} 37. Rb1
{[%emt 00:01:33]} Be2 38. Bg3 {[%clk 00:04:16]} {[%emt 00:01:40]} Rb8 {[%clk
01:01:52]} {[%emt 00:01:11]} 39. Re1 {[%clk 00:01:54]} {[%emt 00:02:52]} Bd3
{[%clk 01:01:51]} {[%emt 00:00:31]} 40. Bxd3 {[%clk 00:01:13]} {[%emt
00:01:12]} cxd3 {[%clk 01:01:09]} {[%emt 00:01:11]} 41. Rd1 {[%clk 00:01:07]}
{[%emt 00:00:36]} Rxb2 {[%clk 01:00:14]} {[%emt 00:01:22]} 42. Rxd3 {[%clk
00:01:40]} {[%emt 00:00:48]} Rb3 {[%clk 00:59:37]} 43. Be1 Bxa3 {[%clk
00:59:44]} 44. c4+ {[%clk 00:01:29]} {[%emt 00:02:01]} Ka6 {[%clk 00:59:39]}
{[%emt 00:00:28]} 45. Rxb3 {[%clk 00:01:27]} {[%emt 00:00:32]} axb3 {[%clk
00:59:53]} {[%emt 00:00:15]} 46. Bc3 {[%clk 00:01:42]} {[%emt 00:00:16]} dxc4
{[%clk 01:00:03]} {[%emt 00:00:20]} 47. e4 {[%clk 00:01:59]} {[%emt 00:00:12]}
b2 {[%clk 01:00:01]} {[%emt 00:00:32]} 48. Bxb2 {[%clk 00:02:24]} {[%emt
00:00:06]} Bxb2 {[%clk 00:59:54]} {[%emt 00:00:32]} 49. exf5 {[%clk 00:02:44]}
{[%emt 00:00:14]} c3 {[%clk 00:59:41]} {[%emt 00:00:43]} 50. fxe6 {[%clk
00:02:47]} {[%emt 00:00:27]} c2 {[%clk 00:59:56]} {[%emt 00:00:11]} 51. e7
{[%clk 00:03:05]} {[%emt 00:00:15]} c1=Q+ {[%clk 00:59:52]} {[%emt 00:00:34]}
52. Ke4 {[%clk 00:03:31]} {[%emt 00:00:05]} Qc2+ {[%clk 00:59:20]} {[%emt
00:01:01]} 53. Ke3 {[%clk 00:03:25]} {[%emt 00:00:37]} Bc1+ {[%clk 00:59:35]}
{[%emt 00:00:16]} 0-1